[Event "Titled Tuesday Blitz February 22 Late 2022"]
[White "Kushko, Dmitriy"]
[Black "Peatman, Carter"]
[WhiteFideId "14162261"]
[BlackFideId "2096480"]
[WhiteElo "2225"]
[BlackElo "2336"]
[Result "1-0"]
[Round "02"]
[TimeControl "180+1"]
[Date "2022.02.23"]
[WhiteClock "0:01:50"]
[BlackClock "0:01:24"]

1. Nf3 {[%clk 0:03:00]}  d5 {[%clk 0:02:58]} 2. g3 {[%clk 0:03:00]}  Nf6 {[%clk 0:02:49]} 3. Bg2 {[%clk 0:03:00]}  Bf5 {[%clk 0:02:48]} 4. O-O {[%clk 0:02:59]}  e6 {[%clk 0:02:46]} 5. c4 {[%clk 0:02:59]}  c6 {[%clk 0:02:46]} 6. Qb3 {[%clk 0:02:59]}  Qb6 {[%clk 0:02:43]} 7. d3 {[%clk 0:03:00]}  Nbd7 {[%clk 0:02:42]} 8. cxd5 {[%clk 0:02:59]}  cxd5 {[%clk 0:02:41]} 9. Qxb6 {[%clk 0:02:58]}  Nxb6 {[%clk 0:02:40]} 10. Be3 {[%clk 0:02:58]}  Nbd7 {[%clk 0:02:40]} 11. Nd4 {[%clk 0:02:56]}  Bg6 {[%clk 0:02:40]} 12. Nb5 {[%clk 0:02:56]}  Rc8 {[%clk 0:02:17]} 13. Nxa7 {[%clk 0:02:46]}  Rc2 {[%clk 0:02:13]} 14. Rc1 {[%clk 0:02:37]}  Rxb2 {[%clk 0:01:54]} 15. Rc8+ {[%clk 0:02:34]}  Ke7 {[%clk 0:01:55]} 16. Nc3 {[%clk 0:02:23]}  Bh5 {[%clk 0:01:44]} 17. Ra8 {[%clk 0:02:08]}  Ng4 {[%clk 0:01:23]} 18. Bd4 {[%clk 0:01:51]}  e5 {[%clk 0:01:24]} 19. Nxd5+ {[%clk 0:01:50]}  Kd6 {[%clk 0:01:24]} 20. Bxb2 {[%clk 0:01:50]} 1-0


[Site "https://www.chess.com"]

[Event "Titled Tuesday Blitz February 22 Late 2022"]
[White "Le Goff, Ronan"]
[Black "Ardila, Oscar Humberto"]
[WhiteFideId "612073"]
[BlackFideId "4404742"]
[WhiteElo "2276"]
[BlackElo "1898"]
[Result "1-0"]
[Round "02"]
[TimeControl "180+1"]
[Date "2022.02.23"]
[WhiteClock "0:01:18"]
[BlackClock "0:00:47"]

1. d4 {[%clk 0:03:00]}  Nf6 {[%clk 0:02:59]} 2. Nc3 {[%clk 0:02:59]}  e6 {[%clk 0:03:00]} 3. e4 {[%clk 0:02:59]}  Bb4 {[%clk 0:03:00]} 4. e5 {[%clk 0:02:58]}  Nd5 {[%clk 0:03:00]} 5. Bd2 {[%clk 0:02:57]}  Bxc3 {[%clk 0:02:51]} 6. bxc3 {[%clk 0:02:57]}  c5 {[%clk 0:02:49]} 7. Qg4 {[%clk 0:02:56]}  g6 {[%clk 0:02:48]} 8. h4 {[%clk 0:02:56]}  h5 {[%clk 0:02:47]} 9. Qg3 {[%clk 0:02:56]}  cxd4 {[%clk 0:02:47]} 10. cxd4 {[%clk 0:02:56]}  Qc7 {[%clk 0:02:46]} 11. c3 {[%clk 0:02:54]}  b6 {[%clk 0:02:43]} 12. Bd3 {[%clk 0:02:51]}  Ne7 {[%clk 0:02:43]} 13. Ne2 {[%clk 0:02:46]}  Ba6 {[%clk 0:02:42]} 14. Be4 {[%clk 0:02:45]}  Bb7 {[%clk 0:02:42]} 15. Bc2 {[%clk 0:02:44]}  Qc6 {[%clk 0:02:35]} 16. O-O {[%clk 0:02:42]}  Nf5 {[%clk 0:02:31]} 17. Bxf5 {[%clk 0:02:35]}  gxf5 {[%clk 0:02:29]} 18. Nf4 {[%clk 0:02:31]}  Na6 {[%clk 0:02:27]} 19. Qg5 {[%clk 0:02:30]}  Nc7 {[%clk 0:02:05]} 20. c4 {[%clk 0:02:10]}  Qe4 {[%clk 0:01:21]} 21. d5 {[%clk 0:01:33]}  Qxe5 {[%clk 0:01:06]} 22. Rfe1 {[%clk 0:01:29]}  Qd6 {[%clk 0:00:51]} 23. Rad1 {[%clk 0:01:25]}  Qe7 {[%clk 0:00:50]} 24. Qxe7+ {[%clk 0:01:19]}  Kxe7 {[%clk 0:00:50]} 25. d6+ {[%clk 0:01:19]}  Kxd6 {[%clk 0:00:46]} 26. Bb4+ {[%clk 0:01:18]}  Kc6 {[%clk 0:00:47]} 27. Rd6# {[%clk 0:01:18]} 1-0


[Site "https://www.chess.com"]

[Event "Titled Tuesday Blitz February 22 Late 2022"]
[White "Lehtosaari, Mauri"]
[Black "Fernandez Hernandez, Gerardo"]
[WhiteFideId "501999"]
[BlackFideId "2207400"]
[WhiteElo "2442"]
[BlackElo "2101"]
[Result "1-0"]
[Round "02"]
[TimeControl "180+1"]
[Date "2022.02.23"]
[WhiteClock "0:00:06"]
[BlackClock "0:00:01"]

1. d4 {[%clk 0:03:00]}  Nf6 {[%clk 0:02:59]} 2. Nf3 {[%clk 0:03:01]}  e6 {[%clk 0:02:59]} 3. Bg5 {[%clk 0:03:00]}  h6 {[%clk 0:02:57]} 4. Bh4 {[%clk 0:03:00]}  g5 {[%clk 0:02:57]} 5. Bg3 {[%clk 0:03:00]}  d6 {[%clk 0:02:55]} 6. Nbd2 {[%clk 0:02:59]}  Bg7 {[%clk 0:02:56]} 7. c3 {[%clk 0:02:58]}  Nbd7 {[%clk 0:02:54]} 8. e4 {[%clk 0:02:51]}  Nh5 {[%clk 0:02:54]} 9. Ng1 {[%clk 0:02:47]}  Nxg3 {[%clk 0:02:54]} 10. hxg3 {[%clk 0:02:48]}  b6 {[%clk 0:02:53]} 11. Bd3 {[%clk 0:02:36]}  Bb7 {[%clk 0:02:51]} 12. Qe2 {[%clk 0:02:35]}  Qe7 {[%clk 0:02:50]} 13. Ngf3 {[%clk 0:02:34]}  a6 {[%clk 0:02:46]} 14. O-O-O {[%clk 0:02:24]}  b5 {[%clk 0:02:42]} 15. Kb1 {[%clk 0:02:19]}  c5 {[%clk 0:02:41]} 16. e5 {[%clk 0:02:13]}  cxd4 {[%clk 0:02:27]} 17. exd6 {[%clk 0:02:02]}  Qxd6 {[%clk 0:02:28]} 18. cxd4 {[%clk 0:02:01]}  Bxd4 {[%clk 0:02:17]} 19. Nxd4 {[%clk 0:02:00]}  Qxd4 {[%clk 0:02:18]} 20. Be4 {[%clk 0:01:51]}  Qb6 {[%clk 0:01:57]} 21. Bxb7 {[%clk 0:01:46]}  Qxb7 {[%clk 0:01:57]} 22. Ne4 {[%clk 0:01:47]}  Ke7 {[%clk 0:01:29]} 23. f4 {[%clk 0:00:37]}  g4 {[%clk 0:01:22]} 24. Rhe1 {[%clk 0:00:35]}  Rhd8 {[%clk 0:00:59]} 25. Qxg4 {[%clk 0:00:29]}  Nf6 {[%clk 0:00:43]} 26. Nxf6 {[%clk 0:00:29]}  Rxd1+ {[%clk 0:00:33]} 27. Qxd1 {[%clk 0:00:23]}  Kxf6 {[%clk 0:00:34]} 28. Qd4+ {[%clk 0:00:23]}  Kg6 {[%clk 0:00:27]} 29. g4 {[%clk 0:00:19]}  Qxg2 {[%clk 0:00:25]} 30. f5+ {[%clk 0:00:19]}  exf5 {[%clk 0:00:21]} 31. gxf5+ {[%clk 0:00:20]}  Kh7 {[%clk 0:00:21]} 32. Qf6 {[%clk 0:00:17]}  Qg7 {[%clk 0:00:20]} 33. Qe7 {[%clk 0:00:15]}  Rc8 {[%clk 0:00:17]} 34. Qe4 {[%clk 0:00:14]}  Qf6 {[%clk 0:00:16]} 35. a3 {[%clk 0:00:14]}  Rc4 {[%clk 0:00:16]} 36. Qd3 {[%clk 0:00:11]}  Rf4 {[%clk 0:00:15]} 37. Rf1 {[%clk 0:00:07]}  Rd4 {[%clk 0:00:11]} 38. Qc2 {[%clk 0:00:06]}  Rc4 {[%clk 0:00:10]} 39. Qd3 {[%clk 0:00:06]}  Rd4 {[%clk 0:00:10]} 40. Qf3 {[%clk 0:00:06]}  Rd2 {[%clk 0:00:08]} 41. Qb3 {[%clk 0:00:07]}  Rd6 {[%clk 0:00:01]} 42. Ka1 {[%clk 0:00:06]}  Rc6 {[%clk 0:00:02]} 43. Qd3 {[%clk 0:00:04]}  Rc4 {[%clk 0:00:02]} 44. Kb1 {[%clk 0:00:03]}  Ra4 {[%clk 0:00:02]} 45. Qc2 {[%clk 0:00:03]}  Rc4 {[%clk 0:00:02]} 46. Qf2 {[%clk 0:00:04]}  a5 {[%clk 0:00:03]} 47. Ka1 {[%clk 0:00:04]}  b4 {[%clk 0:00:03]} 48. a4 {[%clk 0:00:05]}  b3 {[%clk 0:00:03]} 49. Kb1 {[%clk 0:00:04]}  Rxa4 {[%clk 0:00:04]} 50. Qb6 {[%clk 0:00:05]}  Rd4 {[%clk 0:00:03]} 51. Qxf6 {[%clk 0:00:05]}  Rd1+ {[%clk 0:00:01]} 52. Rxd1 {[%clk 0:00:05]}  h5 {[%clk 0:00:01]} 53. Rg1 {[%clk 0:00:06]} 1-0


[Site "https://www.chess.com"]

[Event "Titled Tuesday Blitz February 22 Late 2022"]
[White "Leitao, Rafael"]
[Black "Nakamura, Hikaru"]
[WhiteFideId "2101246"]
[BlackFideId "2016192"]
[WhiteElo "2609"]
[BlackElo "2850"]
[Result "0-1"]
[Round "02"]
[TimeControl "180+1"]
[Date "2022.02.22"]
[WhiteClock "0:00:13"]
[BlackClock "0:00:19"]

1. c4 {[%clk 0:03:00]}  e5 {[%clk 0:03:00]} 2. Nc3 {[%clk 0:02:59]}  Nf6 {[%clk 0:03:00]} 3. Nf3 {[%clk 0:02:59]}  Nc6 {[%clk 0:03:00]} 4. e4 {[%clk 0:03:00]}  Bc5 {[%clk 0:02:59]} 5. Nxe5 {[%clk 0:02:59]}  O-O {[%clk 0:02:58]} 6. Nxc6 {[%clk 0:02:49]}  dxc6 {[%clk 0:02:58]} 7. Be2 {[%clk 0:02:48]}  Qd4 {[%clk 0:02:54]} 8. O-O {[%clk 0:02:44]}  Nxe4 {[%clk 0:02:53]} 9. Nxe4 {[%clk 0:02:38]}  Qxe4 {[%clk 0:02:54]} 10. d3 {[%clk 0:02:34]}  Qe5 {[%clk 0:02:53]} 11. Re1 {[%clk 0:02:08]}  Qf6 {[%clk 0:02:40]} 12. Bf3 {[%clk 0:01:44]}  Bf5 {[%clk 0:02:39]} 13. Be3 {[%clk 0:01:38]}  Bd4 {[%clk 0:02:39]} 14. Qc2 {[%clk 0:01:30]}  Rad8 {[%clk 0:02:35]} 15. Rad1 {[%clk 0:01:28]}  h6 {[%clk 0:02:28]} 16. Re2 {[%clk 0:01:25]}  Rd7 {[%clk 0:02:22]} 17. Bxd4 {[%clk 0:01:25]}  Rxd4 {[%clk 0:02:19]} 18. Re3 {[%clk 0:01:23]}  Rfd8 {[%clk 0:02:18]} 19. b3 {[%clk 0:01:23]}  Qd6 {[%clk 0:02:14]} 20. Qe2 {[%clk 0:01:21]}  Be6 {[%clk 0:01:35]} 21. g3 {[%clk 0:01:19]}  b5 {[%clk 0:01:29]} 22. Re1 {[%clk 0:00:53]}  a6 {[%clk 0:00:52]} 23. h4 {[%clk 0:00:51]}  c5 {[%clk 0:00:52]} 24. Be4 {[%clk 0:00:47]}  f5 {[%clk 0:00:50]} 25. Bf3 {[%clk 0:00:42]}  Bf7 {[%clk 0:00:50]} 26. Re7 {[%clk 0:00:37]}  c6 {[%clk 0:00:36]} 27. Bh5 {[%clk 0:00:36]}  g6 {[%clk 0:00:33]} 28. Bf3 {[%clk 0:00:35]}  Rxd3 {[%clk 0:00:33]} 29. Bd5 {[%clk 0:00:32]}  Rxd5 {[%clk 0:00:32]} 30. cxd5 {[%clk 0:00:30]}  cxd5 {[%clk 0:00:33]} 31. Qe3 {[%clk 0:00:29]}  Kg7 {[%clk 0:00:30]} 32. Ra7 {[%clk 0:00:24]}  d4 {[%clk 0:00:30]} 33. Qe7 {[%clk 0:00:23]}  Qxe7 {[%clk 0:00:29]} 34. Rexe7 {[%clk 0:00:24]}  Rf8 {[%clk 0:00:29]} 35. Red7 {[%clk 0:00:24]}  Kf6 {[%clk 0:00:27]} 36. Rxa6+ {[%clk 0:00:23]}  Ke5 {[%clk 0:00:27]} 37. Re7+ {[%clk 0:00:20]}  Kd5 {[%clk 0:00:28]} 38. f3 {[%clk 0:00:20]}  c4 {[%clk 0:00:25]} 39. b4 {[%clk 0:00:20]}  c3 {[%clk 0:00:20]} 40. Rc7 {[%clk 0:00:18]}  Ke5 {[%clk 0:00:19]} 41. Rc5+ {[%clk 0:00:17]}  Bd5 {[%clk 0:00:19]} 42. Kf2 {[%clk 0:00:17]}  f4 {[%clk 0:00:20]} 43. gxf4+ {[%clk 0:00:15]}  Rxf4 {[%clk 0:00:21]} 44. Ke2 {[%clk 0:00:14]}  Rxh4 {[%clk 0:00:20]} 45. Ra7 {[%clk 0:00:14]}  Rh2+ {[%clk 0:00:20]} 46. Ke1 {[%clk 0:00:13]}  d3 {[%clk 0:00:19]} 47. Rd7 {[%clk 0:00:13]}  d2+ {[%clk 0:00:19]} 0-1


[Site "https://www.chess.com"]

[Event "Titled Tuesday Blitz February 22 Late 2022"]
[White "Lewicki, Miroslaw"]
[Black "Roque Sola, Jose Luis"]
[WhiteFideId "1113380"]
[BlackFideId "5120390"]
[WhiteElo "2283"]
[BlackElo "1983"]
[Result "1-0"]
[Round "02"]
[TimeControl "180+1"]
[Date "2022.02.23"]
[WhiteClock "0:01:01"]
[BlackClock "0:00:13"]

1. g3 {[%clk 0:02:54]}  g6 {[%clk 0:02:57]} 2. Bg2 {[%clk 0:02:55]}  Bg7 {[%clk 0:02:57]} 3. Nf3 {[%clk 0:02:56]}  Nf6 {[%clk 0:02:57]} 4. O-O {[%clk 0:02:56]}  O-O {[%clk 0:02:58]} 5. d4 {[%clk 0:02:56]}  d5 {[%clk 0:02:54]} 6. b3 {[%clk 0:02:55]}  c6 {[%clk 0:02:53]} 7. Bb2 {[%clk 0:02:56]}  Nbd7 {[%clk 0:02:44]} 8. Nbd2 {[%clk 0:02:57]}  b6 {[%clk 0:02:41]} 9. Ne5 {[%clk 0:02:57]}  Bb7 {[%clk 0:02:39]} 10. e4 {[%clk 0:02:57]}  dxe4 {[%clk 0:02:33]} 11. Nxe4 {[%clk 0:02:58]}  Nxe5 {[%clk 0:02:33]} 12. dxe5 {[%clk 0:02:55]}  Nxe4 {[%clk 0:02:32]} 13. Bxe4 {[%clk 0:02:54]}  Qc7 {[%clk 0:02:29]} 14. f4 {[%clk 0:02:51]}  Rad8 {[%clk 0:02:28]} 15. Qf3 {[%clk 0:02:51]}  Rd7 {[%clk 0:02:12]} 16. Rad1 {[%clk 0:02:48]}  Rfd8 {[%clk 0:02:12]} 17. Rxd7 {[%clk 0:02:48]}  Rxd7 {[%clk 0:02:11]} 18. Rd1 {[%clk 0:02:48]}  Rxd1+ {[%clk 0:02:10]} 19. Qxd1 {[%clk 0:02:49]}  c5 {[%clk 0:01:59]} 20. Bxb7 {[%clk 0:02:49]}  Qxb7 {[%clk 0:01:59]} 21. Qd8+ {[%clk 0:02:47]}  Bf8 {[%clk 0:01:59]} 22. Qd3 {[%clk 0:02:46]}  e6 {[%clk 0:01:48]} 23. Bc1 {[%clk 0:02:42]}  Be7 {[%clk 0:01:47]} 24. h4 {[%clk 0:02:38]}  h5 {[%clk 0:01:44]} 25. Be3 {[%clk 0:02:33]}  b5 {[%clk 0:01:42]} 26. c4 {[%clk 0:02:27]}  bxc4 {[%clk 0:01:36]} 27. Qxc4 {[%clk 0:02:27]}  Qf3 {[%clk 0:01:34]} 28. Bf2 {[%clk 0:02:27]}  Kg7 {[%clk 0:01:17]} 29. Qa6 {[%clk 0:02:25]}  Qd1+ {[%clk 0:01:10]} 30. Qf1 {[%clk 0:02:23]}  Qd2 {[%clk 0:01:06]} 31. a4 {[%clk 0:02:05]}  Qc2 {[%clk 0:01:04]} 32. Qb5 {[%clk 0:02:04]}  Qd1+ {[%clk 0:01:01]} 33. Kh2 {[%clk 0:02:02]}  Qc2 {[%clk 0:00:58]} 34. Kg2 {[%clk 0:01:59]}  Qe4+ {[%clk 0:00:57]} 35. Kg1 {[%clk 0:01:57]}  Qb1+ {[%clk 0:00:57]} 36. Kg2 {[%clk 0:01:55]}  Qe4+ {[%clk 0:00:56]} 37. Kf1 {[%clk 0:01:55]}  Qb1+ {[%clk 0:00:52]} 38. Be1 {[%clk 0:01:54]}  Qe4 {[%clk 0:00:48]} 39. Qe2 {[%clk 0:01:49]}  Qb1 {[%clk 0:00:43]} 40. Qc4 {[%clk 0:01:44]}  Qb2 {[%clk 0:00:40]} 41. Bf2 {[%clk 0:01:43]}  Qb1+ {[%clk 0:00:39]} 42. Ke2 {[%clk 0:01:43]}  Qb2+ {[%clk 0:00:38]} 43. Kf3 {[%clk 0:01:43]}  Qb1 {[%clk 0:00:36]} 44. a5 {[%clk 0:01:40]}  Qd1+ {[%clk 0:00:36]} 45. Kg2 {[%clk 0:01:38]}  Qd2 {[%clk 0:00:34]} 46. a6 {[%clk 0:01:37]}  Qd1 {[%clk 0:00:30]} 47. b4 {[%clk 0:01:20]}  Qg4 {[%clk 0:00:28]} 48. bxc5 {[%clk 0:01:17]}  Bxh4 {[%clk 0:00:27]} 49. c6 {[%clk 0:01:17]}  Bd8 {[%clk 0:00:26]} 50. c7 {[%clk 0:01:17]}  Bxc7 {[%clk 0:00:24]} 51. Qxc7 {[%clk 0:01:18]}  h4 {[%clk 0:00:24]} 52. Qc2 {[%clk 0:01:06]}  h3+ {[%clk 0:00:20]} 53. Kh2 {[%clk 0:01:06]}  Qf3 {[%clk 0:00:18]} 54. Bg1 {[%clk 0:01:07]}  Qf1 {[%clk 0:00:15]} 55. Qa2 {[%clk 0:01:02]}  Kh6 {[%clk 0:00:13]} 56. Bxa7 {[%clk 0:01:01]} 1-0


[Site "https://www.chess.com"]

[Event "Titled Tuesday Blitz February 22 Late 2022"]
[White "Lewtak, Damian"]
[Black "Aradhya, Garg"]
[WhiteFideId "1141724"]
[BlackFideId "25006746"]
[WhiteElo "2361"]
[BlackElo "2169"]
[Result "1-0"]
[Round "02"]
[TimeControl "180+1"]
[Date "2022.02.23"]
[WhiteClock "0:00:39"]
[BlackClock "0:00:08"]

1. e4 {[%clk 0:03:00]}  e5 {[%clk 0:02:59]} 2. Nf3 {[%clk 0:03:01]}  Nc6 {[%clk 0:02:59]} 3. Bb5 {[%clk 0:03:01]}  a6 {[%clk 0:02:59]} 4. Bxc6 {[%clk 0:03:01]}  dxc6 {[%clk 0:02:59]} 5. O-O {[%clk 0:03:02]}  f6 {[%clk 0:02:58]} 6. d4 {[%clk 0:03:02]}  Bg4 {[%clk 0:02:58]} 7. dxe5 {[%clk 0:02:59]}  Qxd1 {[%clk 0:02:56]} 8. Rxd1 {[%clk 0:02:59]}  fxe5 {[%clk 0:02:56]} 9. Be3 {[%clk 0:02:50]}  Bxf3 {[%clk 0:02:38]} 10. gxf3 {[%clk 0:02:50]}  Bd6 {[%clk 0:02:39]} 11. Nd2 {[%clk 0:02:43]}  Ne7 {[%clk 0:02:38]} 12. Nc4 {[%clk 0:02:43]}  O-O-O {[%clk 0:02:38]} 13. Rd3 {[%clk 0:02:32]}  Ng6 {[%clk 0:02:36]} 14. Rad1 {[%clk 0:02:28]}  Be7 {[%clk 0:02:34]} 15. Rxd8+ {[%clk 0:02:26]}  Rxd8 {[%clk 0:02:35]} 16. Rxd8+ {[%clk 0:02:26]}  Kxd8 {[%clk 0:02:36]} 17. Kf1 {[%clk 0:02:24]}  b6 {[%clk 0:02:35]} 18. Ke2 {[%clk 0:02:19]}  Kd7 {[%clk 0:02:34]} 19. b3 {[%clk 0:02:16]}  Ke6 {[%clk 0:02:34]} 20. Nb2 {[%clk 0:02:16]}  h6 {[%clk 0:02:22]} 21. Nd3 {[%clk 0:02:16]}  a5 {[%clk 0:02:20]} 22. f4 {[%clk 0:02:05]}  exf4 {[%clk 0:02:18]} 23. Nxf4+ {[%clk 0:02:06]}  Nxf4+ {[%clk 0:02:18]} 24. Bxf4 {[%clk 0:02:07]}  Bd6 {[%clk 0:02:19]} 25. Bg3 {[%clk 0:02:02]}  g5 {[%clk 0:02:16]} 26. f3 {[%clk 0:01:48]}  c5 {[%clk 0:02:04]} 27. a4 {[%clk 0:01:35]}  c6 {[%clk 0:01:31]} 28. Ke3 {[%clk 0:01:25]}  b5 {[%clk 0:01:19]} 29. c4 {[%clk 0:01:20]}  bxc4 {[%clk 0:01:13]} 30. bxc4 {[%clk 0:01:20]}  Be5 {[%clk 0:01:07]} 31. f4 {[%clk 0:01:17]}  Bd4+ {[%clk 0:00:33]} 32. Kf3 {[%clk 0:01:17]}  Kf6 {[%clk 0:00:32]} 33. Be1 {[%clk 0:00:52]}  gxf4 {[%clk 0:00:30]} 34. Bxa5 {[%clk 0:00:51]}  Be3 {[%clk 0:00:16]} 35. Bc7 {[%clk 0:00:48]}  Bd2 {[%clk 0:00:15]} 36. a5 {[%clk 0:00:42]}  Ke6 {[%clk 0:00:08]} 37. a6 {[%clk 0:00:40]}  Kd7 {[%clk 0:00:08]} 38. a7 {[%clk 0:00:39]}  Kxc7 {[%clk 0:00:08]} 39. a8=Q {[%clk 0:00:40]}  Be3 {[%clk 0:00:09]} 40. Qf8 {[%clk 0:00:38]}  Kd7 {[%clk 0:00:08]} 41. Qf7+ {[%clk 0:00:39]}  Kd6 {[%clk 0:00:08]} 42. Qf6+ {[%clk 0:00:39]}  Kd7 {[%clk 0:00:08]} 43. e5 {[%clk 0:00:39]}  Kc7 {[%clk 0:00:07]} 44. Qf7+ {[%clk 0:00:39]}  Kb6 {[%clk 0:00:07]} 45. e6 {[%clk 0:00:40]}  Ka5 {[%clk 0:00:07]} 46. e7 {[%clk 0:00:40]}  Kb4 {[%clk 0:00:07]} 47. e8=Q {[%clk 0:00:40]}  Kc3 {[%clk 0:00:08]} 48. Qe5+ {[%clk 0:00:40]}  Kd3 {[%clk 0:00:07]} 49. Qff5+ {[%clk 0:00:40]}  Kd2 {[%clk 0:00:08]} 50. Qb2+ {[%clk 0:00:40]}  Kd1 {[%clk 0:00:08]} 51. Qfb1+ {[%clk 0:00:39]}  Bc1 {[%clk 0:00:08]} 52. Q1xc1# {[%clk 0:00:39]} 1-0


[Site "https://www.chess.com"]

[Event "Titled Tuesday Blitz February 22 Late 2022"]
[White "Lopez Perdomo, Juan David"]
[Black "Sliwicki, Damian"]
[WhiteFideId "4405137"]
[BlackFideId "1127128"]
[WhiteElo "1997"]
[BlackElo "2084"]
[Result "1/2-1/2"]
[Round "02"]
[TimeControl "180+1"]
[Date "2022.02.23"]
[WhiteClock "0:00:03"]
[BlackClock "0:00:04"]

1. e4 {[%clk 0:03:00]}  c5 {[%clk 0:02:59]} 2. d4 {[%clk 0:03:00]}  cxd4 {[%clk 0:02:50]} 3. c3 {[%clk 0:03:00]}  g6 {[%clk 0:02:47]} 4. cxd4 {[%clk 0:02:59]}  Bg7 {[%clk 0:02:47]} 5. Nf3 {[%clk 0:03:00]}  d5 {[%clk 0:02:45]} 6. exd5 {[%clk 0:02:59]}  Nf6 {[%clk 0:02:44]} 7. Nc3 {[%clk 0:03:00]}  Nxd5 {[%clk 0:02:43]} 8. Be2 {[%clk 0:03:00]}  O-O {[%clk 0:02:43]} 9. O-O {[%clk 0:03:01]}  Nc6 {[%clk 0:02:43]} 10. Bg5 {[%clk 0:03:00]}  Bg4 {[%clk 0:02:38]} 11. h3 {[%clk 0:03:01]}  Bxf3 {[%clk 0:02:19]} 12. Bxf3 {[%clk 0:03:01]}  Nxc3 {[%clk 0:02:18]} 13. bxc3 {[%clk 0:03:02]}  Qa5 {[%clk 0:02:18]} 14. Bd2 {[%clk 0:02:54]}  Rac8 {[%clk 0:02:06]} 15. Qb3 {[%clk 0:02:52]}  Nxd4 {[%clk 0:02:03]} 16. Qxb7 {[%clk 0:02:40]}  Nxf3+ {[%clk 0:01:45]} 17. Qxf3 {[%clk 0:02:41]}  Bxc3 {[%clk 0:01:44]} 18. Bxc3 {[%clk 0:02:35]}  Qxc3 {[%clk 0:01:45]} 19. Qe4 {[%clk 0:02:24]}  e6 {[%clk 0:01:42]} 20. Rab1 {[%clk 0:02:21]}  Qc4 {[%clk 0:01:38]} 21. Qe3 {[%clk 0:02:09]}  Qxa2 {[%clk 0:01:30]} 22. Ra1 {[%clk 0:02:10]}  Qd5 {[%clk 0:01:22]} 23. Rxa7 {[%clk 0:02:09]}  Rc4 {[%clk 0:01:19]} 24. Rb1 {[%clk 0:02:01]}  Re4 {[%clk 0:01:13]} 25. Qf3 {[%clk 0:01:56]}  Qe5 {[%clk 0:01:06]} 26. g3 {[%clk 0:01:49]}  Qd5 {[%clk 0:00:53]} 27. Qf6 {[%clk 0:01:32]}  Re5 {[%clk 0:00:46]} 28. Rxf7 {[%clk 0:01:22]}  Re1+ {[%clk 0:00:28]} 29. Rxe1 {[%clk 0:01:22]}  Rxf7 {[%clk 0:00:29]} 30. Qxe6 {[%clk 0:01:19]}  Qd2 {[%clk 0:00:26]} 31. Qe3 {[%clk 0:00:59]}  Qc2 {[%clk 0:00:18]} 32. Rc1 {[%clk 0:00:47]}  Qf5 {[%clk 0:00:15]} 33. Rc5 {[%clk 0:00:44]}  Qxh3 {[%clk 0:00:11]} 34. Qe8+ {[%clk 0:00:44]}  Kg7 {[%clk 0:00:11]} 35. Qe5+ {[%clk 0:00:45]}  Kg8 {[%clk 0:00:10]} 36. Rb5 {[%clk 0:00:35]}  Qf5 {[%clk 0:00:05]} 37. Rb8+ {[%clk 0:00:32]}  Rf8 {[%clk 0:00:05]} 38. Qxf5 {[%clk 0:00:24]}  gxf5 {[%clk 0:00:04]} 39. Rb4 {[%clk 0:00:23]}  Kg7 {[%clk 0:00:04]} 40. Kg2 {[%clk 0:00:24]}  Kg6 {[%clk 0:00:05]} 41. Kf3 {[%clk 0:00:25]}  Rf6 {[%clk 0:00:06]} 42. Kf4 {[%clk 0:00:24]}  h6 {[%clk 0:00:07]} 43. Rb8 {[%clk 0:00:22]}  Ra6 {[%clk 0:00:07]} 44. Rg8+ {[%clk 0:00:20]}  Kf6 {[%clk 0:00:07]} 45. Rh8 {[%clk 0:00:20]}  Ra4+ {[%clk 0:00:06]} 46. Kf3 {[%clk 0:00:20]}  Ra3+ {[%clk 0:00:07]} 47. Kg2 {[%clk 0:00:20]}  Kg7 {[%clk 0:00:07]} 48. Rc8 {[%clk 0:00:20]}  Ra5 {[%clk 0:00:08]} 49. Rc7+ {[%clk 0:00:21]}  Kg6 {[%clk 0:00:08]} 50. Rc6+ {[%clk 0:00:20]}  Kg5 {[%clk 0:00:08]} 51. Kh3 {[%clk 0:00:20]}  f4 {[%clk 0:00:07]} 52. gxf4+ {[%clk 0:00:16]}  Kxf4 {[%clk 0:00:06]} 53. Rxh6 {[%clk 0:00:17]}  Rg5 {[%clk 0:00:03]} 54. Rf6+ {[%clk 0:00:15]}  Ke4 {[%clk 0:00:03]} 55. Kh4 {[%clk 0:00:09]}  Rg1 {[%clk 0:00:04]} 56. Kh3 {[%clk 0:00:08]}  Rg8 {[%clk 0:00:03]} 57. Rf7 {[%clk 0:00:08]}  Rg1 {[%clk 0:00:03]} 58. Kh2 {[%clk 0:00:08]}  Rg8 {[%clk 0:00:03]} 59. Kh3 {[%clk 0:00:07]}  Rg1 {[%clk 0:00:03]} 60. Kh4 {[%clk 0:00:07]}  Rg8 {[%clk 0:00:04]} 61. Kh5 {[%clk 0:00:07]}  Rg1 {[%clk 0:00:04]} 62. f4 {[%clk 0:00:06]}  Rf1 {[%clk 0:00:02]} 63. Kg5 {[%clk 0:00:06]}  Rg1+ {[%clk 0:00:03]} 64. Kh6 {[%clk 0:00:06]}  Rh1+ {[%clk 0:00:02]} 65. Kg7 {[%clk 0:00:04]}  Rg1+ {[%clk 0:00:03]} 66. Kf8 {[%clk 0:00:05]}  Rf1 {[%clk 0:00:03]} 67. Re7+ {[%clk 0:00:05]}  Kd5 {[%clk 0:00:02]} 68. Rf7 {[%clk 0:00:04]}  Ke4 {[%clk 0:00:03]} 69. Re7+ {[%clk 0:00:04]}  Kf5 {[%clk 0:00:04]} 70. Rf7+ {[%clk 0:00:04]}  Kg4 {[%clk 0:00:04]} 71. Kg7 {[%clk 0:00:04]}  Rxf4 {[%clk 0:00:03]} 72. Rxf4+ {[%clk 0:00:03]}  Kxf4 {[%clk 0:00:04]} 1/2-1/2


[Site "https://www.chess.com"]